bitfinex/quotes_BTCUSD_20250410
["timestamp","ask_amount","ask_price","bid_price","bid_amount"]
[1744286946250,0.00012834,81569.0,81568.0,0.14420166]
[1744286946607,0.00012834,81569.0,81568.0,0.15646066]
[1744286947101,0.00012834,81569.0,81568.0,0.14735367]
[1744286947856,0.00012834,81569.0,81568.0,0.40411562]
[1744286948055,0.00012834,81569.0,81568.0,0.40166415]
[1744286950599,0.0003376,81582.0,81581.0,0.257412]
[1744286950959,0.0003376,81582.0,81581.0,0.38024967]
[1744286951695,0.0003376,81582.0,81581.0,0.13509467]
[1744286951898,0.0003376,81582.0,81581.0,0.01454085]
[1744286952099,0.0003376,81582.0,81550.0,0.42479913]
[1744286952424,0.0003376,81582.0,81563.0,0.245207]
[1744286952425,0.17521891,81580.0,81563.0,0.245207]
[1744286952626,0.0499,81581.0,81565.0,0.245202]
[1744286953032,0.0499,81581.0,81566.0,0.2452]
[1744286953435,0.0499,81581.0,81567.0,0.01454085]
[1744286953840,0.34237273,81580.0,81557.0,0.00931498]
[1744286954046,0.34237273,81580.0,81557.0,0.00012774]
[1744286954419,0.0466,81580.0,81567.0,0.245194]
[1744286954546,0.0466,81580.0,81564.0,0.01454085]
[1744286954885,0.4,81579.0,81566.0,0.245198]
[1744286955087,0.4,81579.0,81567.0,0.25973685]
[1744286955322,0.4,81579.0,81567.0,0.02679985]
[1744286955496,0.0466,81580.0,81571.0,0.01454085]
[1744286955706,0.0466,81580.0,81571.0,0.25972485]
[1744286955942,0.0466,81580.0,81569.0,0.25973185]
[1744286956062,0.0003376,81582.0,81576.0,0.245169]
[1744286956280,0.0003376,81582.0,81580.0,0.245155]
[1744286956512,0.0003376,81582.0,81575.0,0.01454085]
[1744286956734,0.0003376,81582.0,81581.0,0.245155]
[1744286957008,0.0003376,81582.0,81580.0,0.245157]
[1744286957150,0.0003376,81582.0,81581.0,0.245155]
[1744286957351,0.0003376,81582.0,81581.0,0.13509467]
[1744286957552,0.0003376,81582.0,81581.0,0.01454085]
[1744286959213,0.0003376,81582.0,81581.0,0.25969585]
[1744286959437,0.0003376,81582.0,81581.0,0.01454085]
[1744286961489,0.0003376,81582.0,81581.0,0.25969585]
[1744286961689,0.0003376,81582.0,81581.0,0.01454085]
[1744286962350,0.0003376,81582.0,81566.0,0.01226]
[1744286962544,0.0003376,81582.0,81575.0,0.01454085]
[1744286962856,0.0003376,81582.0,81575.0,0.25971085]
[1744286963240,0.0003376,81582.0,81577.0,0.01454085]
[1744286963582,0.00856333,81581.0,81577.0,0.01454085]
[1744286964052,0.00856333,81581.0,81579.0,0.01454085]
[1744286964359,0.00856333,81580.0,81579.0,0.25970085]
[1744286964704,0.00856333,81580.0,81579.0,0.25970185]
[1744286964905,0.00856333,81580.0,81579.0,0.01454085]
[1744286965509,0.00856333,81580.0,81574.0,0.012258]
[1744286965510,0.00856333,81580.0,81559.0,0.245218]
[1744286965711,0.00856333,81579.0,81569.0,0.01454085]
[1744286966151,0.25372433,81579.0,81557.0,0.00918975]
[1744286966360,0.00856333,81579.0,81558.0,0.01454085]
[1744286966685,0.245167,81577.0,81558.0,0.01454085]
[1744286966855,0.17521891,81570.0,81557.0,0.00012774]
[1744286967466,0.4,81569.0,81557.0,0.00012774]
[1744286967790,0.00856333,81568.0,81558.0,0.0229201]
[1744286968373,0.00856333,81568.0,81557.0,0.00012774]
[1744286968374,0.00856333,81568.0,81559.0,0.0229201]
[1744286968584,0.00856333,81567.0,81559.0,0.0229201]
[1744286968785,0.3875,81566.0,81560.0,0.0229201]
[1744286969154,0.3875,81566.0,81561.0,0.0229201]
[1744286969356,0.4,81565.0,81561.0,0.0229201]
[1744286969559,0.40856333,81565.0,81561.0,0.0229201]
[1744286969783,0.40856333,81565.0,81557.0,0.00012774]
[1744286969981,0.34,81562.0,81558.0,0.02290863]
[1744286970190,0.58522,81560.0,81558.0,0.02290863]
[1744286970378,0.14137815,81559.0,81558.0,0.02290863]
[1744286970558,0.585224,81558.0,81557.0,0.00012774]
[1744286970789,0.46055382,81558.0,81557.0,0.00012774]
[1744286970997,0.4607945,81558.0,81557.0,0.00012774]
[1744286971248,0.46935783,81558.0,81557.0,0.00012774]
[1744286971850,0.72684283,81558.0,81557.0,0.00012774]
[1744286972227,1.12690302,81558.0,81557.0,0.00012774]
[1744286972761,1.12702343,81558.0,81557.0,0.00012774]
[1744286973712,0.86953843,81558.0,81557.0,0.00012774]
[1744286974431,0.86941802,81558.0,81557.0,0.00012774]
[1744286974799,0.86932773,81558.0,81557.0,0.00012774]
[1744286975009,0.86950833,81558.0,81557.0,0.00012774]
[1744286975983,0.40871371,81558.0,81557.0,0.00012774]
[1744286976184,0.40856333,81558.0,81557.0,0.00012774]
[1744286976594,0.0469,81564.0,81557.0,0.00012774]
[1744286976798,0.049,81575.0,81557.0,0.00012774]
[1744286976971,0.0475,81577.0,81560.0,0.245217]
[1744286977124,0.34,81572.0,81560.0,0.245217]
[1744286977327,0.4,81576.0,81559.0,0.25975985]
[1744286977669,0.4,81576.0,81562.0,0.245209]
[1744286977819,0.4,81576.0,81557.0,0.25989459]
[1744286978032,0.4,81576.0,81559.0,0.01454085]
[1744286978234,0.0475,81577.0,81559.0,0.01454085]
[1744286978469,0.00854204,81572.0,81559.0,0.01454085]
[1744286978665,0.4,81571.0,81561.0,0.01454085]
[1744286978900,0.4,81571.0,81562.0,0.02284919]
[1744286979101,0.4,81571.0,81566.0,0.245199]
[1744286979513,0.4,81571.0,81567.0,0.26804319]
[1744286979719,0.0003376,81582.0,81568.0,0.01454085]
[1744286979917,0.0003376,81582.0,81576.0,0.245168]
[1744286980150,0.0003376,81582.0,81569.0,0.02284919]
[1744286980652,0.17521891,81580.0,81566.0,0.245199]
[1744286980795,0.17521891,81580.0,81567.0,0.245197]
[1744286980996,0.00854356,81579.0,81567.0,0.245197]
[1744286981421,0.00854356,81579.0,81565.0,0.02284919]
[1744286981819,0.00854356,81579.0,81561.0,0.245215]
[1744286981820,0.12909738,81578.0,81559.0,0.02284919]
[1744286982053,0.17521891,81572.0,81559.0,0.26807019]
[1744286982303,0.00854356,81578.0,81575.0,0.245173]
[1744286982515,0.0003376,81582.0,81575.0,0.245172]
[1744286982719,0.0003376,81582.0,81581.0,0.245155]
[1744286983316,0.0003376,81582.0,81578.0,0.01454085]
[1744286983520,0.0003376,81582.0,81574.0,0.245175]
[1744286983791,0.0003376,81582.0,81577.0,0.245166]
[1744286984172,0.0003376,81582.0,81575.0,0.01454085]
[1744286984373,0.0003376,81582.0,81572.0,0.01454085]
[1744286984572,0.0003376,81582.0,81580.0,0.245157]
[1744286984976,0.0003376,81582.0,81581.0,0.245155]
[1744286985151,0.0003376,81582.0,81581.0,0.27195285]
[1744286985354,0.0003376,81582.0,81581.0,0.25969585]
[1744286985583,0.0003376,81582.0,81581.0,0.39250667]
[1744286986974,0.004,81589.0,81588.0,0.012256]
[1744286987105,0.004,81589.0,81588.0,0.29721562]
[1744286987311,0.004,81589.0,81588.0,0.40306295]
[1744286987516,0.004,81589.0,81588.0,0.38022867]
[1744286987708,0.004,81589.0,81588.0,0.245134]
[1744286988514,0.004,81589.0,81588.0,0.39248467]
[1744286988926,0.004,81589.0,81588.0,0.25967485]
[1744286990487,0.004,81589.0,81588.0,0.245134]
[1744286993097,0.0003374,81591.0,81590.0,0.245128]
[1744286994039,0.0003374,81591.0,81590.0,0.24449998]
[1744286994829,0.0003374,81591.0,81590.0,0.39185065]
[1744287000221,8e-07,81594.0,81593.0,0.59965985]
[1744287000510,8.3e-07,81602.0,81599.0,0.012255]
[1744287000713,4.7e-07,81602.0,81601.0,0.61188985]
[1744287000875,4.7e-07,81602.0,81601.0,0.73244367]
[1744287001955,4.7e-07,81602.0,81601.0,0.39244367]
[1744287002779,4.7e-07,81602.0,81601.0,0.40184737]
[1744287004799,4.7e-07,81602.0,81601.0,0.38959337]
[1744287005056,4.7e-07,81602.0,81596.0,0.245108]
[1744287005341,4.7e-07,81602.0,81598.0,0.245102]
[1744287005547,4.7e-07,81602.0,81596.0,0.245107]
[1744287005548,4.7e-07,81602.0,81599.0,0.2451]
[1744287005745,4.7e-07,81602.0,81591.0,0.12055382]
[1744287005917,0.29514187,81601.0,81587.0,0.012256]
[1744287006115,0.29514187,81601.0,81591.0,0.245124]
[1744287006526,4.7e-07,81602.0,81592.0,0.012256]
[1744287006730,4.7e-07,81602.0,81592.0,0.245122]
[1744287006929,4.7e-07,81602.0,81594.0,0.245115]
[1744287007302,4.7e-07,81602.0,81595.0,0.245112]
[1744287008628,4.7e-07,81602.0,81594.0,0.245115]
[1744287008949,4.7e-07,81602.0,81595.0,0.012255]
[1744287009387,4.7e-07,81602.0,81588.0,0.245132]
[1744287009588,0.17497603,81600.0,81591.0,0.245124]
[1744287009791,0.17497603,81600.0,81589.0,0.245128]
[1744287009985,0.17497603,81600.0,81590.0,0.245126]
[1744287010367,0.17497603,81600.0,81579.0,0.012258]
[1744287010549,0.17497603,81600.0,81587.0,0.245135]
[1744287011190,0.17497603,81600.0,81588.0,0.245133]
[1744287011371,0.17497603,81600.0,81590.0,0.245127]
[1744287011774,0.01139144,81602.0,81601.0,0.257349]
[1744287011985,4.7e-07,81602.0,81601.0,0.245095]
[1744287012182,4.7e-07,81602.0,81584.0,0.01454085]
[1744287012369,0.17497603,81600.0,81591.0,0.245124]
[1744287012883,0.34,81600.0,81577.0,0.012258]
[1744287013083,0.17497603,81590.0,81578.0,0.01454085]
[1744287013331,0.17497603,81590.0,81582.0,0.245151]
[1744287013865,0.047,81593.0,81582.0,0.245151]
[1744287014072,0.047,81593.0,81580.0,0.01454085]
[1744287014416,0.17497603,81590.0,81572.0,0.01454085]
[1744287014591,0.17497603,81590.0,81573.0,0.01454085]
[1744287014763,0.17497603,81590.0,81575.0,0.01454085]
[1744287014960,0.17497603,81590.0,81570.0,0.012259]
[1744287014961,0.012258,81579.0,81556.0,0.16539156]
[1744287015168,0.17497603,81577.0,81576.0,0.02290504]
[1744287015364,0.74,81577.0,81576.0,0.02290504]
[1744287015589,0.352258,81576.0,81557.0,0.02290504]
[1744287015826,0.58517,81576.0,81557.0,0.02290504]
[1744287016163,0.58517,81576.0,81556.0,0.16539156]
[1744287016380,0.00857008,81575.0,81556.0,0.16539156]
[1744287016536,0.012258,81573.0,81567.0,0.12792511]
[1744287016783,0.585186,81571.0,81567.0,0.12792511]
[1744287017098,0.34,81569.0,81567.0,0.12792511]
[1744287017301,0.76610682,81568.0,81567.0,0.12792511]
[1744287017451,0.81200682,81568.0,81567.0,0.12792511]
[1744287017803,0.3859,81568.0,81567.0,0.12792511]
[1744287017987,0.38606538,81568.0,81567.0,0.12792511]
[1744287018190,0.51518928,81568.0,81567.0,0.00042563]
[1744287018392,0.52744828,81568.0,81567.0,0.00042563]
[1744287018531,0.52771917,81568.0,81567.0,0.00042563]
[1744287019041,0.92771917,81568.0,81567.0,0.00042563]
[1744287020292,0.91546017,81568.0,81567.0,0.00042563]
[1744287020488,0.91524948,81568.0,81567.0,0.00042563]
[1744287020686,0.91539997,81568.0,81567.0,0.00042563]
[1744287021232,0.9152194,81568.0,81567.0,0.00042563]
[1744287021552,0.90664932,81568.0,81567.0,0.00042563]
[1744287021777,0.9067998,81568.0,81567.0,0.00042563]
[1744287021995,1.1642528,81568.0,81567.0,0.00042563]
[1744287022195,1.57865275,81568.0,81567.0,0.00042563]
[1744287024334,1.58725833,81568.0,81567.0,0.00042563]
[1744287024979,1.32980533,81568.0,81567.0,0.00042563]
[1744287025170,0.86073623,81568.0,81567.0,0.00042563]
[1744287025631,0.86061583,81568.0,81567.0,0.00042563]
[1744287025889,1.57853236,81568.0,81567.0,0.00042563]
[1744287026124,1.57847217,81568.0,81567.0,0.00042563]
[1744287026354,1.57862265,81568.0,81567.0,0.00042563]
[1744287026580,1.62662265,81568.0,81567.0,0.00042563]
[1744287026793,1.63513104,81568.0,81567.0,0.00042563]
[1744287028639,1.37767804,81568.0,81567.0,0.00042563]
[1744287028922,1.20912422,81568.0,81567.0,0.00042563]
[1744287029120,1.16322422,81568.0,81567.0,0.00042563]
[1744287029332,1.15462554,81568.0,81567.0,0.00042563]
[1744287029538,1.15450516,81568.0,81567.0,0.00042563]
[1744287030076,1.15444498,81568.0,81567.0,0.00042563]
[1744287030297,1.15439995,81568.0,81567.0,0.00042563]
[1744287030664,0.75447507,81568.0,81567.0,0.00042563]
[1744287031339,0.75444498,81568.0,81567.0,0.00042563]
[1744287031696,0.41450516,81568.0,81567.0,0.00042563]
[1744287031908,0.4,81572.0,81567.0,0.24562263]
[1744287032330,0.4,81572.0,81567.0,0.00042563]
[1744287032656,0.41439995,81590.0,81573.0,0.245179]
[1744287032977,1.26204,81591.0,81574.0,0.245175]
[1744287033158,0.34,81588.0,81572.0,0.01454085]
[1744287033475,0.34,81588.0,81571.0,0.01454085]
[1744287033598,0.34,81588.0,81571.0,0.25972485]
[1744287034414,0.34,81588.0,81572.0,0.012259]
[1744287034620,0.34,81588.0,81573.0,0.245179]
[1744287034828,0.4,81589.0,81576.0,0.012258]
[1744287035026,0.34,81588.0,81578.0,0.245161]
[1744287035457,0.4,81589.0,81581.0,0.245154]
[1744287035665,0.4,81589.0,81582.0,0.245149]
[1744287036248,0.4,81589.0,81583.0,0.25968785]
[1744287036589,0.34,81590.0,81583.0,0.25968785]
[1744287038373,1.26204,81591.0,81583.0,0.25968785]
[1744287038583,1.26204,81591.0,81586.0,0.245139]
[1744287038782,0.41439995,81606.0,81602.0,0.245091]
[1744287038982,0.0003374,81607.0,81599.0,0.245099]
[1744287039231,0.0003374,81607.0,81597.0,0.245104]
[1744287039420,0.0003374,81607.0,81596.0,0.245109]
[1744287039615,0.0003374,81607.0,81595.0,0.24511]
[1744287040745,0.0003374,81607.0,81593.0,0.25965685]
[1744287040908,0.0003374,81607.0,81593.0,0.25978402]
[1744287041312,0.0003374,81607.0,81593.0,0.00012717]
[1744287041517,0.0003374,81607.0,81594.0,0.245115]
[1744287043336,0.0003374,81607.0,81596.0,0.012255]
[1744287043538,0.0003374,81607.0,81599.0,0.012255]
[1744287043670,0.0003374,81607.0,81604.0,0.245083]
[1744287044068,0.0003374,81607.0,81604.0,0.245085]
[1744287044614,0.0003374,81607.0,81606.0,0.24508]
[1744287046008,0.0003374,81607.0,81606.0,0.39242867]
[1744287047892,0.0003374,81607.0,81606.0,0.44022867]
[1744287052462,4e-07,81607.0,81606.0,0.78522867]
[1744287052685,0.0003372,81615.0,81610.0,0.257321]
[1744287052921,0.0003372,81615.0,81610.0,0.80679604]
[1744287053148,6e-07,81616.0,81615.0,0.27184485]
[1744287053303,6e-07,81616.0,81615.0,0.39239867]
[1744287053707,6e-07,81616.0,81615.0,0.41517904]
[1744287053877,6e-07,81616.0,81615.0,0.42427472]
[1744287055765,0.004,81619.0,81615.0,0.42427472]
[1744287055766,8e-07,81619.0,81618.0,0.597295]
[1744287055977,8e-07,81623.0,81621.0,0.345]
[1744287056159,8e-07,81627.0,81626.0,0.27180985]
[1744287056367,8e-07,81627.0,81626.0,0.78356367]
[1744287056505,8e-07,81633.0,81632.0,0.597251]
[1744287056709,8e-07,81633.0,81632.0,0.74408145]
[1744287056905,0.00012839,81633.0,81632.0,0.74408145]
[1744287057311,0.00012839,81633.0,81632.0,0.76686182]
[1744287061436,0.00012839,81633.0,81632.0,0.77186182]
[1744287061644,0.00012839,81633.0,81632.0,0.76686182]
[1744287062465,0.00012839,81633.0,81632.0,0.40058519]
[1744287062670,0.0474368,81652.0,81645.0,0.244961]
[1744287062987,0.0474368,81652.0,81647.0,0.244955]
[1744287063138,0.0474368,81652.0,81640.0,0.012248]
[1744287063342,0.0474368,81652.0,81650.0,0.244947]
[1744287063540,0.0474368,81652.0,81643.0,0.02278037]
[1744287063770,0.0474368,81652.0,81648.0,0.244952]
[1744287064002,0.0003368,81652.0,81650.0,0.244947]
[1744287064532,0.0003368,81652.0,81650.0,0.27997437]
[1744287064886,0.0003368,81652.0,81650.0,0.41506904]
[1744287065504,0.0003368,81652.0,81650.0,0.40282204]
[1744287065746,0.0003368,81652.0,81650.0,0.41506904]
[1744287067462,8e-07,81651.0,81650.0,0.41506904]
[1744287067662,6e-07,81652.0,81651.0,0.36678785]
[1744287067810,6e-07,81652.0,81651.0,0.51012204]
[1744287070651,6e-07,81652.0,81651.0,0.49558119]
[1744287071215,0.0001685,81664.0,81661.0,0.012245]
[1744287071420,0.00029607,81664.0,81662.0,0.27169685]
[1744287071616,0.00029607,81664.0,81662.0,0.29447722]
[1744287072037,0.00029607,81664.0,81663.0,0.03732122]
[1744287072435,0.00029607,81664.0,81663.0,0.02278037]
[1744287072641,0.00029607,81664.0,81662.0,0.26769137]
[1744287072975,0.00029607,81664.0,81662.0,0.27993637]
[1744287073536,0.00029607,81664.0,81662.0,0.26769137]
[1744287073978,0.00029607,81664.0,81662.0,0.244911]
[1744287074343,0.00029607,81664.0,81663.0,0.244908]
[1744287074572,0.00029607,81664.0,81663.0,0.257153]
[1744287074971,0.00029607,81664.0,81663.0,0.244908]
[1744287075301,8.809e-05,81664.0,81663.0,0.26768837]
[1744287077522,8.809e-05,81664.0,81663.0,0.29447422]
[1744287077904,8.809e-05,81664.0,81663.0,0.28222922]
[1744287079150,8.809e-05,81664.0,81663.0,0.02278037]
[1744287079654,8.809e-05,81664.0,81663.0,0.2791026]
[1744287080401,8.809e-05,81664.0,81663.0,0.26768837]
[1744287081494,8.809e-05,81664.0,81663.0,0.26268837]
[1744287084367,8.809e-05,81664.0,81663.0,0.27412703]
[1744287085428,0.0474,81674.0,81663.0,0.27412703]
[1744287085773,0.00858071,81666.0,81664.0,0.244905]
[1744287086327,0.4,81673.0,81664.0,0.244905]
[1744287086524,0.4,81673.0,81665.0,0.01143866]
[1744287087194,0.34,81666.0,81665.0,0.01143866]
[1744287088139,0.0495,81671.0,81665.0,0.01143866]
[1744287088140,0.3895,81671.0,81665.0,0.01143866]
[1744287088514,0.3895,81671.0,81580.0,0.06147397]
[1744287088515,0.34,81669.0,81648.0,0.01454085]
[1744287088715,0.584891,81669.0,81654.0,0.244933]
[1744287088848,0.34,81669.0,81655.0,0.244932]
[1744287089052,0.34,81669.0,81655.0,0.24493]
[1744287089251,0.34,81669.0,81656.0,0.244928]
[1744287089478,0.34,81669.0,81655.0,0.24493]
[1744287089673,0.34,81667.0,81655.0,0.24493]
[1744287089888,0.46055382,81667.0,81655.0,0.24493]
[1744287090300,0.46055382,81667.0,81658.0,0.244921]
[1744287091241,0.46055382,81667.0,81659.0,0.24492]
[1744287091860,0.4,81666.0,81659.0,0.244914]
[1744287092057,0.0495,81671.0,81668.0,0.244891]
[1744287092257,0.0495,81671.0,81670.0,0.244887]
[1744287094106,0.0495,81671.0,81663.0,0.244907]
[1744287094318,0.0495,81671.0,81665.0,0.244902]
[1744287094627,0.0495,81671.0,81663.0,0.244907]
[1744287094628,0.0495,81671.0,81664.0,0.26780234]
[1744287094799,0.0495,81671.0,81665.0,0.02289834]
[1744287094981,0.0495,81671.0,81665.0,0.26780034]
[1744287095196,0.0495,81671.0,81666.0,0.02289834]
[1744287095574,0.0495,81671.0,81667.0,0.02289834]
[1744287095776,0.0495,81671.0,81668.0,0.02289834]
[1744287096214,0.4,81670.0,81668.0,0.02289834]
[1744287096412,0.4,81670.0,81669.0,0.02289834]
[1744287097574,0.4,81670.0,81657.0,0.244921]
[1744287097774,0.4,81670.0,81655.0,0.12749948]
[1744287097775,0.00859108,81669.0,81655.0,0.12749948]
[1744287097978,0.0455,81668.0,81656.0,0.02291053]
[1744287098177,0.34,81667.0,81656.0,0.02291053]
[1744287098379,0.40859108,81666.0,81657.0,0.02291053]
[1744287098858,0.40859108,81666.0,81658.0,0.02291053]
[1744287099247,0.40859108,81666.0,81658.0,0.26783153]
[1744287099443,0.40859108,81666.0,81659.0,0.02291053]
[1744287099690,0.00859108,81665.0,81659.0,0.26783053]
[1744287099953,0.00859108,81665.0,81659.0,0.02291053]
[1744287100140,0.00859108,81665.0,81661.0,0.244912]
[1744287100298,0.4,81664.0,81661.0,0.244912]
[1744287100510,0.00859108,81663.0,81662.0,0.02291053]
[1744287101333,0.26574408,81663.0,81662.0,0.02291053]
[1744287101651,0.60574408,81663.0,81662.0,0.02291053]
[1744287101858,0.34,81662.0,81656.0,0.02291053]
[1744287102350,0.00859108,81661.0,81651.0,0.24507157]
[1744287102646,0.4,81660.0,81652.0,0.02291356]
[1744287103052,0.4,81660.0,81653.0,0.02291356]
[1744287103245,0.00859108,81659.0,81653.0,0.02291356]
[1744287103701,0.01129108,81659.0,81653.0,0.02291356]
[1744287103874,0.40859108,81658.0,81654.0,0.02291356]
[1744287104282,0.40859108,81658.0,81655.0,0.02291356]
[1744287104497,0.40859108,81658.0,81656.0,0.244929]
[1744287104693,0.00859108,81658.0,81657.0,0.244926]
[1744287104866,0.0027,81659.0,81657.0,0.02291356]
[1744287105317,0.0027,81659.0,81657.0,0.26783956]
[1744287105458,0.0027,81659.0,81657.0,0.244926]
[1744287106433,0.0027,81659.0,81658.0,0.257169]
[1744287106756,0.0027,81659.0,81658.0,0.28007816]
[1744287107193,0.0027,81659.0,81658.0,0.26783216]
[1744287107931,0.0027,81659.0,81658.0,0.29153358]
[1744287117548,0.0027,81659.0,81658.0,0.03436458]
[1744287117719,0.1023,81659.0,81658.0,0.03436458]
[1744287118183,0.5023,81659.0,81658.0,0.03436458]
[1744287118598,0.4027,81659.0,81658.0,0.28460041]
[1744287119639,0.4027,81659.0,81658.0,0.52952341]
[1744287119870,0.4027,81659.0,81658.0,0.26169125]
[1744287120995,0.4027,81659.0,81658.0,0.25023583]
[1744287122157,0.4027,81659.0,81654.0,0.244935]
[1744287122551,0.4027,81659.0,81655.0,0.244932]
[1744287122808,0.4027,81659.0,81654.0,0.244935]
[1744287123008,0.4027,81659.0,81653.0,0.13974548]
[1744287123214,0.4027,81659.0,81658.0,0.244923]
[1744287123418,0.4027,81659.0,81658.0,0.25638135]
[1744287123676,0.4027,81659.0,81658.0,0.01145835]
[1744287124181,1.12041982,81659.0,81658.0,0.01145835]
[1744287124329,1.21301982,81659.0,81658.0,0.01145835]
[1744287124539,0.597181,81654.0,81653.0,0.12749948]
[1744287124732,0.71773482,81654.0,81653.0,0.12749948]
[1744287126081,1.05841482,81654.0,81653.0,0.12749948]
[1744287126248,1.10651482,81654.0,81653.0,0.12749948]
[1744287127420,1.50651482,81654.0,81653.0,0.03069948]
[1744287129152,1.50651482,81654.0,81643.0,0.16539156]
[1744287129153,0.012248,81644.0,81643.0,0.13665157]
[1744287129359,0.012248,81644.0,81637.0,0.20355885]
[1744287129360,0.642532,81638.0,81637.0,0.18985919]
[1744287129583,0.78258582,81638.0,81637.0,0.18985919]
[1744287129787,0.78258582,81638.0,81621.0,0.0003366]
[1744287129788,0.597254,81631.0,81629.0,0.12830595]
[1744287129991,1.03226782,81631.0,81629.0,0.12830595]
[1744287130242,1.08136782,81631.0,81629.0,0.12830595]
[1744287130646,1.08992711,81631.0,81629.0,0.12830595]
[1744287132877,1.2103597,81631.0,81629.0,0.12830595]
[1744287133504,1.6103597,81631.0,81629.0,0.12830595]
[1744287133926,1.48992711,81631.0,81629.0,0.12830595]
[1744287135886,1.48992711,81631.0,81621.0,0.0003366]
[1744287136419,1.06051782,81631.0,81621.0,0.0003366]
[1744287136659,1.07276782,81631.0,81621.0,0.0003366]
[1744287137011,1.41276782,81631.0,81621.0,0.0003366]
[1744287137402,1.44276782,81631.0,81621.0,0.0003366]
[1744287141127,0.59726,81629.0,81621.0,0.0003366]
[1744287141337,0.71781382,81629.0,81621.0,0.0003366]
[1744287141749,1.11781382,81629.0,81621.0,0.0003366]
[1744287143671,1.28283382,81629.0,81621.0,0.0003366]
[1744287143800,1.30237467,81629.0,81621.0,0.0003366]
[1744287144032,1.47280726,81629.0,81621.0,0.0003366]
[1744287144833,0.718189,81626.0,81621.0,0.0003366]
[1744287145032,0.85328367,81626.0,81621.0,0.0003366]
[1744287145372,0.85328367,81626.0,81599.0,0.0003368]
[1744287145373,0.597352,81600.0,81599.0,0.0003368]
[1744287145505,2.30876582,81600.0,81599.0,0.0003368]
[1744287145701,2.30876582,81600.0,81599.0,0.00046439]
[1744287146221,2.70876582,81600.0,81599.0,0.00046439]
[1744287148366,2.41602117,81600.0,81599.0,0.00046439]
[1744287148753,2.66111917,81600.0,81599.0,0.00046439]
[1744287149091,2.67337317,81600.0,81599.0,0.00046439]
[1744287151734,2.68190524,81600.0,81599.0,0.00046439]
[1744287152078,2.58190524,81600.0,81599.0,0.00046439]
[1744287152334,2.57337317,81600.0,81599.0,0.00046439]
[1744287158095,2.56111917,81600.0,81599.0,0.00046439]
[1744287158297,2.31602117,81600.0,81599.0,0.00046439]
[1744287159605,2.31602117,81600.0,81599.0,0.24556539]
[1744287159807,2.31602117,81600.0,81599.0,0.25782039]
[1744287160872,0.03,81601.0,81599.0,0.30512039]
[1744287161074,0.03,81601.0,81600.0,0.257352]
[1744287162286,0.03,81601.0,81600.0,0.26878094]
[1744287163239,0.03,81601.0,81600.0,0.257352]
[1744287165370,0.03,81601.0,81600.0,0.26878086]
[1744287166548,0.03,81601.0,81600.0,0.36118086]
[1744287166726,0.03,81601.0,81600.0,0.37572171]
[1744287166949,0.26292,81629.0,81625.0,0.245022]
[1744287167146,0.13251502,81626.0,81625.0,0.257273]
[1744287167545,0.12055382,81626.0,81625.0,0.303873]
[1744287167750,0.12055382,81626.0,81625.0,0.31530186]
[1744287169502,0.12055382,81626.0,81625.0,0.303873]
[1744287170516,0.12055382,81626.0,81625.0,0.0466]
[1744287170720,0.12055382,81626.0,81625.0,0.058851]
[1744287170888,0.12055382,81626.0,81625.0,0.303873]
[1744287174550,0.12055382,81626.0,81625.0,0.245022]
[1744287174699,0.0001686,81633.0,81625.0,0.245022]
[1744287174905,0.3401686,81633.0,81621.0,0.0988]
[1744287175106,0.34,81630.0,81625.0,0.012251]
[1744287175306,0.0001686,81633.0,81632.0,0.257251]
[1744287176351,0.0001686,81633.0,81630.0,0.245007]
[1744287176706,0.0001686,81633.0,81632.0,0.245001]
[1744287177474,0.0001686,81633.0,81631.0,0.257252]
[1744287177838,0.0001686,81633.0,81630.0,0.257252]
[1744287177839,0.245004,81632.0,81621.0,0.356085]
[1744287178037,0.2451676,81633.0,81623.0,0.245028]
[1744287178464,0.0001686,81633.0,81626.0,0.245018]
[1744287178663,0.0001686,81633.0,81627.0,0.245016]
[1744287178870,0.0001686,81633.0,81626.0,0.245018]
[1744287179071,0.0001686,81633.0,81622.0,0.00012759]
[1744287179307,0.34,81631.0,81622.0,0.00012759]
[1744287179862,0.34,81631.0,81624.0,0.245025]
[1744287180188,0.34,81631.0,81622.0,0.00012759]
[1744287180189,0.0001686,81633.0,81625.0,0.012251]
[1744287180368,0.0001686,81633.0,81630.0,0.245005]
[1744287180546,0.245017,81627.0,81616.0,0.245049]
[1744287180758,0.245017,81627.0,81613.0,0.0493]
[1744287180759,0.245025,81625.0,81613.0,0.0493]
[1744287180954,0.245025,81625.0,81612.0,0.012253]
[1744287180955,0.245025,81625.0,81615.0,0.245051]
[1744287181158,0.245025,81625.0,81609.0,0.0492]
[1744287181159,0.585028,81623.0,81608.0,0.245072]
[1744287181399,0.597279,81623.0,81604.0,0.012254]
[1744287181604,0.597279,81623.0,81601.0,0.062154]
[1744287181809,0.597279,81623.0,81602.0,0.012254]
[1744287182160,0.597279,81623.0,81601.0,0.294992]
[1744287182364,0.841599,81623.0,81599.0,0.0003368]
[1744287182584,0.890899,81623.0,81599.0,0.0003368]
[1744287183460,1.290899,81623.0,81599.0,0.0003368]
[1744287185866,0.597352,81600.0,81599.0,0.0003368]
[1744287186626,0.997352,81600.0,81599.0,0.0003368]
[1744287187573,0.74,81600.0,81599.0,0.0003368]
[1744287187770,0.98436,81600.0,81599.0,0.0003368]
[1744287187930,0.985098,81600.0,81599.0,0.0003368]
[1744287188131,0.74,81600.0,81599.0,0.0003368]
[1744287189072,0.997352,81600.0,81599.0,0.0003368]
[1744287189656,0.74,81600.0,81599.0,0.0003368]
[1744287190373,0.997352,81600.0,81599.0,0.0003368]
[1744287191792,0.74,81600.0,81599.0,0.0003368]
[1744287192413,0.0946,81623.0,81599.0,0.0003368]
[1744287192414,0.23836,81631.0,81612.0,0.245062]
[1744287192567,0.01225,81630.0,81617.0,0.245046]
[1744287192771,0.257263,81629.0,81615.0,0.012252]
[1744287193026,0.645016,81628.0,81617.0,0.245046]
[1744287193202,0.245017,81627.0,81616.0,0.245048]
[1744287193422,0.34,81625.0,81616.0,0.245048]
[1744287193618,0.585024,81625.0,81614.0,0.24505]
[1744287193824,0.34,81621.0,81612.0,0.24506]
[1744287194006,0.25728,81623.0,81612.0,0.24506]
[1744287194208,0.34,81622.0,81613.0,0.245057]
[1744287194408,0.34,81622.0,81614.0,0.245055]
[1744287194610,0.012251,81620.0,81598.0,0.012255]
[1744287194799,0.012252,81615.0,81599.0,0.0125918]